fUST/lending_fUST_20250825
["ID","MTS","AMOUNT","RATE_DAILY","PERIOD"]
[381124344,1756057998450,561.73702391,0.000199,2]
[381124345,1756057998547,561.73702372,0.00023353,2]
[381124346,1756057999004,561.73702372,0.0002508,2]
[381124347,1756057999260,561.73702372,0.00026806,6]
[381124348,1756057999304,561.73702372,0.00021627,2]
[381124349,1756058166164,468.11418653,0.000199,2]
[381124350,1756058166203,468.11418643,0.00026806,6]
[381124351,1756058166368,468.11418643,0.00021627,2]
[381124352,1756058166487,468.11418643,0.00023353,2]
[381124353,1756058167210,468.11418643,0.0002508,2]
[381124354,1756058170417,959.99,0.00030981,30]
[381124355,1756058215925,160.950764,0.00013699,2]
[381124357,1756058333619,390.0951556,0.000199,2]
[381124358,1756058333670,390.09515535,0.00023353,2]
[381124359,1756058333721,390.09515535,0.00021627,2]
[381124360,1756058334108,390.09515535,0.0002508,2]
[381124361,1756058334322,390.09515535,0.00026806,6]
[381124362,1756058369932,1000.0,0.00027,120]
[381124364,1756058500442,325.07929627,0.000199,2]
[381124365,1756058500647,325.07929612,0.0002508,2]
[381124366,1756058500983,325.07929612,0.00021627,2]
[381124367,1756058501130,325.07929612,0.00026806,6]
[381124368,1756058501240,325.07929612,0.00023353,2]
[381124370,1756058668142,270.89941343,0.00021627,2]
[381124371,1756058668275,270.89941353,0.000199,2]
[381124372,1756058668455,270.89941343,0.00023353,2]
[381124373,1756058668858,270.89941343,0.0002508,2]
[381124374,1756058669111,270.89941343,0.00026806,6]
[381124375,1756058845646,225.74951124,0.000199,2]
[381124376,1756058845795,225.74951119,0.00023353,2]
[381124377,1756058845857,225.74951119,0.0002508,2]
[381124378,1756058846266,225.74951119,0.00026806,6]
[381124379,1756058846297,225.74951119,0.00021627,2]
[381124382,1756058970502,400.13442988,1e-05,2]
[381124384,1756059013663,330.60363054,0.000199,2]
[381124385,1756059014192,330.60363025,0.00021627,2]
[381124386,1756059014258,330.60363025,0.0002508,2]
[381124387,1756059014370,330.60363025,0.00023353,2]
[381124388,1756059014472,330.60363025,0.00026806,6]
[381124421,1756059032615,-150.51,0.00028244,15]
[381124423,1756059032625,-150.51,0.00028344,15]
[381124425,1756059032634,-150.51,0.00028444,15]
[381124427,1756059032643,-330.60363025,0.00028533,10]
[381124429,1756059032655,-204.29122672,0.0002997,2]
[381124431,1756059032665,-1000.0,0.0003,120]
[381124433,1756059032675,-300.0,0.00030137,120]
[381124435,1756059032685,-330.60363025,0.00030259,13]
[381124437,1756059032695,-400.0,0.00030477,2]
[381124439,1756059032706,-300.0,0.00030477,2]
[381124441,1756059032715,-400.0,0.00030477,2]
[381124443,1756059032725,-300.0,0.00030477,2]
[381124445,1756059032735,-5000.0,0.00030478,2]
[381124447,1756059032744,-215.99145658,0.00030786,2]
[381124449,1756059032754,-160.0,0.00030786,2]
[381124451,1756059032763,-1133.47648364,0.00030795,2]
[381124453,1756059032773,-5257.30168932,0.00030795,2]
[381124455,1756059032782,-500.0,0.00030873,5]
[381124457,1756059032792,-500.0,0.00030873,5]
[381124459,1756059032801,-1213.96,0.00030875,3]
[381124461,1756059032810,-606.98,0.00030875,3]
[381124463,1756059032819,-303.49,0.00030875,3]
[381124465,1756059032829,-151.75,0.00030875,3]
[381124467,1756059032838,-455.26,0.00030875,3]
[381124469,1756059032847,-921.74246075,0.00030885,2]
[381124471,1756059032856,-1307.87822185,0.00030885,20]
[381124473,1756059032867,-13044.5655655,0.00030885,20]
[381124475,1756059032879,-6411.12,0.00030885,20]
[381124478,1756059032899,-65757.52825536,0.00030885,20]
[381124488,1756059038355,-325.76237576,0.00030795,2]
[381124489,1756059038366,-1879.94999464,0.00030795,2]
[381124490,1756059038411,-2947.8116058,0.00030795,2]
[381124491,1756059038423,-709.49924858,0.00030795,2]
[381124492,1756059038434,-3251.85799729,0.00030795,2]
[381124493,1756059038444,-921.74246075,0.00030885,2]
[381124494,1756059038453,-1311845.79088806,0.00030885,20]
[381124495,1756059038464,-99542.1675808,0.00030885,20]
[381124496,1756059038475,-1954.47812692,0.00030885,20]
[381124752,1756059041004,-90298.35599156,0.00030885,20]
[381124754,1756059041015,-5717.498,0.00030885,20]
[381124757,1756059041027,-352.14524183,0.00030885,20]
[381124760,1756059041046,-1975.0,0.00030885,20]
[381124828,1756059042049,199.0,0.00026749,20]
[381124854,1756059043624,-83655.446359,0.00030885,20]
[381124855,1756059043636,-478.01799811,0.00030885,20]
[381124856,1756059043680,-9208.32132529,0.00030885,20]
[381124857,1756059043692,-2453.85,0.00030885,20]
[381124883,1756059046576,-1987.855937,0.00030885,20]
[381124889,1756059046629,-46121.83704002,0.00030885,20]
[381124895,1756059046684,-117732.5621125,0.00030885,20]
[381124897,1756059046695,-1477.02550826,0.00030885,20]
[381124899,1756059046706,-1787.94145366,0.00030885,20]
[381124903,1756059046739,-12937.79093891,0.00030885,20]
[381125076,1756059181162,253.46278325,0.000199,2]
[381125077,1756059181558,253.46278319,0.00023353,2]
[381125078,1756059181656,253.46278319,0.00021627,2]
[381125079,1756059181823,253.46278319,0.00026806,6]
[381125080,1756059181862,253.46278319,0.0002508,2]
[381125083,1756059348480,211.21898604,0.000199,2]
[381125084,1756059348684,211.21898599,0.00021627,2]
[381125085,1756059348791,211.21898599,0.0002508,2]
[381125086,1756059349101,211.21898599,0.00026806,6]
[381125087,1756059349500,211.21898599,0.00023353,2]
[381125088,1756059519033,351.94079162,0.0002249,2]
[381125089,1756059519540,351.94079162,0.00024216,2]
[381125090,1756059519583,351.94079162,0.00025943,4]
[381125092,1756059690185,281.58667848,0.0002249,2]
[381125093,1756059690413,281.58667848,0.00025943,4]
[381125094,1756059690455,281.58667848,0.00024216,2]
[381125096,1756059869076,234.26331664,0.0002249,2]
[381125097,1756059869174,234.26331664,0.00024216,2]
[381125098,1756059869334,234.26331664,0.00025943,4]
[381125105,1756060036934,374.8213066,0.00024216,2]
[381125106,1756060036965,562.23196007,0.00025943,4]
[381125107,1756060037027,374.8213066,0.0002249,2]
[381125108,1756060037077,374.8213066,0.00025943,4]
[381125113,1756060121227,2537.1735404,0.00024,60]
[381125121,1756060203876,299.85704528,0.00020763,2]
[381125122,1756060203939,299.85704528,0.0002249,2]
[381125123,1756060203983,299.85704528,0.00024216,2]
[381125124,1756060204043,224.89278396,0.00025943,4]
[381125125,1756060220615,302.36504558,0.00025813,16]
[381125144,1756060232192,-217.63,0.00028146,15]
[381125145,1756060232201,-153.27,0.00028146,15]
[381125146,1756060232211,-156.29,0.00028149,15]
[381125147,1756060232220,-156.29,0.00028149,15]
[381125149,1756060232229,-156.29,0.00028149,15]
[381125151,1756060232238,-627.15222203,0.00028149,2]
[381125153,1756060232250,-319.48034497,0.00028149,2]
[381125156,1756060232259,-181.11466503,0.00028243,2]
[381125159,1756060232270,-118.88533497,0.00028243,2]
[381125161,1756060232279,-300.0,0.00028243,2]
[381125163,1756060232288,-89.83198152,0.00028243,2]
[381125164,1756060232299,-210.16801848,0.00028243,2]
[381125165,1756060232308,-8015.29646786,0.00028244,2]
[381125182,1756060237621,-303.73758918,0.00028244,2]
[381125184,1756060237631,-9598.41525497,0.00028244,2]
[381125186,1756060237643,-21509.86110428,0.00028244,2]
[381125188,1756060237653,-153.27,0.00028246,15]
[381125190,1756060237662,-156.29,0.00028249,15]
[381125192,1756060237672,-156.29,0.00028249,15]
[381125194,1756060237681,-156.29,0.00028249,15]
[381125197,1756060237690,-156.29,0.00028349,15]
[381125199,1756060237699,-156.29,0.00028349,15]
[381125201,1756060237709,-156.29,0.00028349,15]
[381125203,1756060237718,-156.29,0.00028449,15]
[381125205,1756060237727,-156.32,0.00028449,15]
[381125207,1756060237737,-156.32,0.00028449,15]
[381125208,1756060237746,-156.29,0.00028549,15]
[381125211,1756060237755,-156.29,0.00028649,15]
[381125212,1756060237764,-156.29,0.00028749,15]
[381125214,1756060237774,-156.35,0.00028849,15]
[381125216,1756060237783,-160.0,0.00029082,2]
[381125218,1756060237792,-152.31489871,0.00029089,2]
[381125220,1756060237802,-500.0,0.00029089,2]
[381125222,1756060237811,-196.0927309,0.00029089,2]
[381125224,1756060237821,-513.884079,0.00029089,2]
[381125226,1756060237830,-500.0,0.00029089,2]
[381125228,1756060237839,-500.0,0.00029089,2]
[381125230,1756060237848,-288.45768082,0.00029089,2]
[381125232,1756060237858,-500.0,0.00029089,2]
[381125234,1756060237867,-10670.63593606,0.0002909,2]
[381125237,1756060237879,-2027.89857819,0.0002909,2]
[381125239,1756060237889,-160.0,0.00029133,2]
[381125240,1756060237899,-160.0,0.00029133,2]
[381125242,1756060237909,-4118.14818775,0.0002982,2]
[381125244,1756060237919,-500.0,0.00029977,2]
[381125245,1756060237928,-417.52468797,0.0003,120]
[381125246,1756060237937,-715.22334226,0.0003,120]
[381125247,1756060237947,-403.18919427,0.0003,10]
[381125248,1756060237956,-202.72230618,0.0003,120]
[381125249,1756060237965,-727.5207651,0.0003,120]
[381125250,1756060237974,-182.90401557,0.0003,120]
[381125251,1756060237984,-242.46439042,0.0003,120]
[381125252,1756060237993,-515.1216964,0.0003,120]
[381125253,1756060238002,-375.50290563,0.0003,120]
[381125254,1756060238012,-417.00880825,0.0003,30]
[381125255,1756060238021,-160.0,0.00030122,2]
[381125256,1756060238031,-855.52748264,0.0003013,15]
[381125257,1756060238040,-284.09789342,0.0003013,2]
[381125258,1756060238050,-736.25852557,0.00030136,120]
[381125259,1756060238060,-1030.19,0.000302,60]
[381125260,1756060238070,-975.3121391,0.000302,2]
[381125261,1756060238080,-211.2017087,0.000302,2]
[381125262,1756060238090,-168.0,0.0003048,2]
[381125263,1756060238100,-420.0,0.00030495,2]
[381125264,1756060238109,-180.0,0.0003067,2]
[381125265,1756060238120,-181.3562374,0.00030788,2]
[381125266,1756060238130,-8528.57889961,0.00030788,2]
[381125267,1756060238139,-181.35623738,0.00030791,2]
[381125268,1756060238149,-181.35623738,0.00030794,2]
[381125269,1756060238159,-181.35623738,0.00030797,2]
[381125270,1756060238168,-181.35623738,0.000308,2]
[381125271,1756060238178,-500.0,0.00030873,5]
[381125272,1756060238187,-500.0,0.00030873,5]
[381125273,1756060238197,-1085.01,0.00030878,3]
[381125274,1756060238207,-542.5,0.00030878,3]
[381125275,1756060238216,-271.25,0.00030878,3]
[381125276,1756060238226,-813.78,0.00030878,3]
[381125277,1756060238235,-160.0,0.00030878,2]
[381125278,1756060238244,-3600.0,0.0003088,120]
[381125279,1756060238254,-3046.9741015,0.00030881,2]
[381125280,1756060238263,-500.0,0.00030887,2]
[381125281,1756060238272,-347.58370361,0.00030887,2]
[381125282,1756060238282,-500.0,0.00030887,2]
[381125283,1756060238291,-500.0,0.00030887,2]
[381125285,1756060238300,-500.0,0.00030887,2]
[381125286,1756060238310,-504.43639905,0.00030887,2]
[381125288,1756060238320,-596024.0275166,0.00030888,20]
[381125290,1756060238329,-789267.26279642,0.00030888,20]
[381125291,1756060238342,-99542.1675808,0.00030888,20]
[381125292,1756060238356,-500.0,0.00030888,20]
[381125339,1756060239810,-734.13697913,0.00030888,2]
[381125340,1756060239819,-126250.53067209,0.00030888,20]
[381125341,1756060239831,-6179.44782065,0.00030888,20]
[381125477,1756060242871,-6124.41046417,0.00030888,20]
[381125785,1756060246022,-2516.67719695,0.00030888,20]
[381125787,1756060246035,-1969.752434,0.00030888,20]
[381125805,1756060246205,-61041.75440151,0.00030888,20]
[381127539,1756060381298,317.62495562,0.0002249,2]
[381127540,1756060381414,317.62495562,0.00025943,4]
[381127541,1756060381648,317.62495562,0.00024216,2]
[381127543,1756060552654,280.58467505,0.00021627,2]
[381127544,1756060552816,280.58467517,0.000199,2]
[381127545,1756060552959,280.58467505,0.00023353,2]
[381127546,1756060553222,280.58467505,0.0002508,2]
[381127547,1756060724070,495.00486753,0.000199,2]
[381127548,1756060724185,495.00486737,0.0002508,2]
[381127549,1756060724480,495.00486737,0.00026806,6]
[381127550,1756060724936,495.00486737,0.00021627,2]
[381127551,1756060725032,495.00486737,0.00023353,2]
[381127552,1756060880190,-250.0,0.00027192,2]
[381127553,1756060893850,536.83871959,0.000199,2]
[381127554,1756060893958,536.83871959,0.00023353,2]
[381127555,1756060894071,536.83871959,0.00026806,6]
[381127556,1756060894206,536.83871959,0.00021627,2]
[381127557,1756060894362,536.83871959,0.0002508,2]
[381127559,1756061064315,1675.99454481,0.000199,2]
[381127560,1756061064625,1675.99454469,0.00026806,6]
[381127561,1756061064707,1675.99454469,0.00021627,2]
[381127562,1756061064978,1675.99454469,0.0002508,2]
[381127563,1756061065121,1675.99454469,0.00023353,2]
[381127564,1756061120796,1000.0,0.000266,2]
[381127565,1756061232252,1396.66212072,0.000199,2]
[381127566,1756061232362,1396.66212057,0.0002508,2]
[381127567,1756061232607,1396.66212057,0.00023353,2]
[381127568,1756061232713,1396.66212057,0.00026806,6]
[381127569,1756061232861,1396.66212057,0.00021627,2]
[381127570,1756061251950,419.174909,0.00013699,2]
[381127571,1756061252012,419.174909,0.00020187,2]
[381127572,1756061252281,419.174909,0.00026676,2]
[381127573,1756061406255,1163.88510062,0.000199,2]
[381127574,1756061406320,1163.88510047,0.00026806,6]
[381127575,1756061407042,1163.88510047,0.00021627,2]
[381127576,1756061407100,1163.88510047,0.00023353,2]
[381127577,1756061407156,1163.88510047,0.0002508,2]
[381127596,1756061432057,-400.0,0.0002739,7]
[381127597,1756061432067,-300.0,0.00027591,2]
[381127598,1756061432077,-300.0,0.00027591,2]
[381127599,1756061432086,-300.0,0.00027591,2]
[381127601,1756061432095,-300.0,0.00027591,2]
[381127603,1756061432104,-1200.0,0.00027591,2]
[381127604,1756061432114,-279.32045322,0.00027591,2]
[381127606,1756061432122,-500.0,0.00027591,2]
[381127608,1756061432132,-9947.3380031,0.00027592,2]
[381127824,1756061437896,-11485.0,0.00027592,2]
[381127831,1756061437954,-28025.4899036,0.00027592,2]
[381127833,1756061437965,-892.8713203,0.0002774,2]
[381127835,1756061437976,-180.714364,0.00027753,2]
[381127837,1756061437986,-180.714364,0.00027822,2]
[381127839,1756061437997,-180.714364,0.00027892,2]
[381127841,1756061438008,-156.29,0.00028149,15]
[381127844,1756061438018,-155.21,0.0002815,15]
[381127846,1756061438029,-151.59,0.0002815,15]
[381127848,1756061438040,-887.80170412,0.0002815,2]
[381127850,1756061438050,-156.29,0.00028249,15]
[381127851,1756061438060,-155.22,0.0002825,15]
[381127853,1756061438071,-151.59,0.0002825,15]
[381127855,1756061438081,-156.29,0.00028349,15]
[381127857,1756061438093,-156.29,0.00028449,15]
[381127859,1756061438104,-1163.88510047,0.00028533,10]
[381127861,1756061438115,-156.29,0.00028549,15]
[381127863,1756061438127,-156.29,0.00028649,15]
[381127865,1756061438140,-156.29,0.00028749,15]
[381127868,1756061438152,-156.35,0.00028849,15]
[381127869,1756061438163,-844.67759735,0.00029084,2]
[381127871,1756061438174,-420.0,0.00029811,2]
[381127874,1756061438186,-453.86777288,0.00029923,2]
[381127875,1756061438196,-24791.1371894,0.0002999,2]
[381127878,1756061438206,-160.0,0.00029991,2]
[381127879,1756061438215,-500.0,0.00029999,2]
[381127882,1756061438230,-347.58370361,0.00029999,2]
[381127884,1756061438240,-500.0,0.00029999,2]
[381127885,1756061438250,-500.0,0.00029999,2]
[381127887,1756061438260,-504.43639905,0.00029999,2]
[381127889,1756061438272,-500.0,0.00029999,2]
[381127891,1756061438282,-98000.0,0.0003,2]
[381127893,1756061438292,-800.0,0.00030662,2]
[381127895,1756061438303,-160.0,0.0003069,2]
[381127897,1756061438312,-852.66998134,0.00030699,2]
[381127899,1756061438322,-160.0,0.00030769,2]
[381127901,1756061438331,-2755.64889133,0.00030791,2]
[381127904,1756061438341,-500.0,0.000308,30]
[381127905,1756061438350,-800.0,0.00030818,2]
[381127907,1756061438360,-800.0,0.0003085,2]
[381127909,1756061438369,-223.32,0.0003086,3]
[381127911,1756061438379,-670.0,0.0003086,3]
[381127913,1756061438388,-446.64,0.00030864,3]
[381127915,1756061438397,-800.0,0.00030866,2]
[381127917,1756061438407,-893.28,0.0003087,3]
[381127919,1756061438416,-1786.56,0.00030874,3]
[381127921,1756061438426,-500.0,0.0003088,120]
[381127923,1756061438435,-3046.9741015,0.00030884,2]
[381127925,1756061438445,-356481.35236825,0.00030891,20]
[381127928,1756061438455,-500.0,0.00030891,2]
[381127929,1756061438464,-500.0,0.00030891,2]
[381127931,1756061438475,-500.0,0.00030891,2]
[381127933,1756061438486,-500.0,0.00030891,2]
[381127935,1756061438496,-500.0,0.00030891,2]
[381127937,1756061438506,-500.0,0.00030891,2]
[381127939,1756061438518,-500.0,0.00030891,2]
[381127941,1756061438529,-500.0,0.00030891,2]
[381127943,1756061438539,-500.0,0.00030891,2]
[381127945,1756061438548,-500.0,0.00030891,2]
[381127947,1756061438557,-500.0,0.00030891,2]
[381127949,1756061438567,-500.0,0.00030891,2]
[381127951,1756061438576,-389.19287169,0.00030891,2]
[381127953,1756061438585,-11050.68,0.000309,7]
[381127955,1756061438594,-1000.000001,0.000309,5]
[381127957,1756061438603,-376.22310801,0.000309,7]
[381127959,1756061438613,-3259.56,0.000309,7]
[381127961,1756061438622,-160.0,0.000309,7]
[381127963,1756061438631,-217.07852671,0.000309,7]
[381127965,1756061438640,-160.0,0.000309,7]
[381127967,1756061438649,-500.0,0.0003096,7]
[381127969,1756061438658,-160.0,0.00030977,2]
[381127971,1756061438668,-153.0,0.00031,120]
[381127973,1756061438681,-155.520907,0.00031044,2]
[381127975,1756061438690,-160.0,0.00031044,2]
[381127977,1756061438700,-232.42214577,0.00031045,2]
[381127979,1756061438710,-24791.1371894,0.0003108,2]
[381127981,1756061438720,-172.24,0.000311,7]
[381127983,1756061438732,-3748.21,0.000311,2]
[381127985,1756061438742,-180.0,0.00031238,2]
[381127987,1756061438751,-168.0,0.00031261,2]
[381127989,1756061438760,-155.520907,0.00031298,2]
[381127991,1756061438769,-300.0,0.00031592,20]
[381127993,1756061438779,-300.0,0.00031592,20]
[381127995,1756061438788,-600.0,0.00031609,20]
[381127997,1756061438800,-1163.88510047,0.00031986,17]
[381127999,1756061438810,-168.0,0.00031998,2]
[381128001,1756061438819,-500.0,0.00032049,7]
[381128003,1756061438828,-587.0,0.0003221,2]
[381128005,1756061438838,-446.64,0.0003223,3]
[381128007,1756061438847,-893.28,0.00032234,3]
[381128009,1756061438856,-1786.56,0.0003224,3]
[381128011,1756061438866,-376.22310801,0.00032244,3]
[381128013,1756061438876,-160.0,0.00032244,3]
[381128014,1756061438886,-160.0,0.00032244,3]
[381128016,1756061438895,-217.07852671,0.00032244,3]
[381128018,1756061438904,-160.0,0.00032244,3]
[381128020,1756061438913,-3573.12,0.00032244,3]
[381128022,1756061438923,-500.79919152,0.00032455,5]
[381128024,1756061438932,-500.0,0.00032475,5]
[381128026,1756061438941,-500.0,0.00032475,5]
[381128028,1756061438951,-500.0,0.00032475,5]
[381128030,1756061438961,-168.0,0.00032486,2]
[381128032,1756061438970,-168.0,0.00032828,2]
[381128034,1756061438980,-500.0,0.00032876,120]
[381128036,1756061438990,-168.0,0.00032879,2]
[381128038,1756061439000,-1000.0,0.00033023,5]
[381128040,1756061439010,-1000.0,0.00033023,5]
[381128042,1756061439019,-419.174909,0.00033165,2]
[381128044,1756061439028,-3259.56,0.000332,7]
[381128047,1756061439038,-1000.0,0.00033571,5]
[381128049,1756061439048,-500.0,0.00033571,5]
[381128051,1756061439057,-500.0,0.00033698,120]
[381128053,1756061439067,-1163.88510047,0.00033712,21]
[381128055,1756061439076,-334.54178551,0.00033936,5]
[381128057,1756061439085,-11050.68,0.000342,14]
[381128059,1756061439094,-153.0,0.000344,120]
[381128061,1756061439104,-500.0,0.0003452,120]
[381128063,1756061439114,-500.0,0.00034638,7]
[381128065,1756061439124,-720.0,0.0003477,20]
[381128067,1756061439133,-181.35623738,0.00034792,2]
[381128069,1756061439142,-273.0,0.00034801,2]
[381128071,1756061439152,-609.24989691,0.00035342,120]
[381128073,1756061439162,-1163.88510047,0.00035439,24]
[381128075,1756061439180,-24791.1371894,0.00035564,3]
[381128077,1756061439190,-326.0,0.00035574,14]
[381128100,1756061439401,-326.0,0.00035574,14]
[381128102,1756061439412,-326.0,0.00035574,14]
[381128104,1756061439421,-326.0,0.00035574,14]
[381128107,1756061439430,-326.0,0.00035574,14]
[381128109,1756061439439,-326.0,0.00035574,14]
[381128111,1756061439449,-326.0,0.00035574,14]
[381128113,1756061439459,-326.0,0.00035574,14]
[381128115,1756061439468,-326.0,0.00035574,14]
[381128117,1756061439480,-326.0,0.00035574,14]
[381128120,1756061439490,-326.0,0.00035574,14]
[381128123,1756061439499,-326.0,0.00035574,14]
[381128125,1756061439509,-326.0,0.00035574,14]
[381128127,1756061439518,-326.0,0.00035574,14]
[381128129,1756061439528,-326.0,0.00035574,14]
[381128131,1756061439537,-326.0,0.00035574,14]
[381128134,1756061439546,-326.0,0.00035574,14]
[381128136,1756061439555,-326.0,0.00035574,14]
[381128138,1756061439564,-326.0,0.00035574,14]
[381128140,1756061439573,-326.0,0.00035574,14]
[381128142,1756061439582,-156.85382725,0.00035574,14]
[381128144,1756061439591,-326.0,0.00035574,14]
[381128147,1756061439601,-324.0,0.00035574,14]
[381128150,1756061439611,-500.0,0.00036398,7]
[381128153,1756061439620,-3259.56,0.000364,7]
[381128156,1756061439630,-181.35623738,0.00036796,2]
[381128159,1756061439640,-1163.88510047,0.00037166,28]
[381128162,1756061439649,-172.24,0.000376,7]
[381128165,1756061439658,-153.0,0.000378,120]
[381128168,1756061439668,-3748.21,0.000378,14]
[381128171,1756061439677,-2371.93655102,0.0003801,5]
[381128174,1756061439686,-200.0,0.00038043,120]
[381128177,1756061439696,-864.0,0.00038247,20]
[381128180,1756061439705,-300.0,0.00038356,120]
[381128183,1756061439715,-11050.68,0.000385,14]
[381128186,1756061439726,-181.35623738,0.000388,2]
[381128189,1756061439735,-24791.1371894,0.0003888,3]
[381128192,1756061439745,-49582.2743787,0.0003889,3]
[381128195,1756061439754,-1163.88510047,0.00038892,32]
[381128198,1756061439764,-99835.25668759,0.000389,60]
[381128201,1756061439774,-376.22310801,0.000389,3]
[381128204,1756061439783,-1000.0,0.00039,120]
[381128207,1756061439795,-3259.56,0.000394,7]
[381128210,1756061439806,-419.174909,0.00039654,2]
[381128213,1756061439815,-200.0,0.0004,14]
[381128216,1756061439827,-164.92,0.0004,60]
[381128219,1756061439837,-2755.64889133,0.0004014,10]
[381128222,1756061439847,-289.974,0.00040319,2]
[381128225,1756061439856,-450.73256847,0.00040333,2]
[381128228,1756061439865,-200.0,0.000405,120]
[381128231,1756061439877,-200.0,0.000405,120]
[381128235,1756061439886,-277.0,0.000405,17]
[381128238,1756061439895,-1163.88510047,0.00040619,36]
[381128240,1756061439904,-157.0,0.00041,90]
[381128244,1756061439914,-153.0,0.000412,120]
[381128247,1756061439924,-157.0,0.0004137,90]
[381128250,1756061439933,-500.0,0.00041635,30]
[381128253,1756061439943,-151.0,0.00042041,120]
[381128256,1756061439952,-151.0,0.00042041,120]
[381128258,1756061439961,-151.0,0.00042041,120]
[381128260,1756061439971,-151.0,0.00042041,120]
[381128262,1756061439982,-195.30278,0.00042041,120]
[381128264,1756061439992,-151.0,0.00042041,120]
[381128267,1756061440004,-151.0,0.00042041,120]
[381128268,1756061440013,-151.0,0.00042041,120]
[381128270,1756061440022,-151.0,0.00042041,120]
[381128272,1756061440032,-151.0,0.00042041,120]
[381128274,1756061440041,-151.0,0.00042041,120]
[381128276,1756061440050,-151.0,0.00042041,120]
[381128278,1756061440059,-151.0,0.00042041,120]
[381128280,1756061440068,-151.0,0.00042041,120]
[381128282,1756061440078,-151.0,0.00042041,120]
[381128284,1756061440087,-151.0,0.00042041,14]
[381128286,1756061440098,-151.0,0.00042041,120]
[381128288,1756061440108,-151.0,0.00042041,120]
[381128291,1756061440118,-151.0,0.00042041,120]
[381128293,1756061440128,-193.94553,0.00042041,120]
[381128295,1756061440138,-1000.0,0.00042071,30]
[381128296,1756061440147,-1163.88510047,0.00042345,39]
[381128297,1756061440156,-155.520907,0.00042703,20]
[381128298,1756061440171,-200.0,0.000428,120]
[381128299,1756061440185,-529.17068775,0.00043,120]
[381128300,1756061440195,-157.0,0.00043151,90]
[381128301,1756061440204,-160.0,0.00043175,3]
[381128302,1756061440213,-24791.1371894,0.0004319,3]
[381128303,1756061440222,-11050.68,0.000432,14]
[381128304,1756061440234,-151.0,0.000432,120]
[381128305,1756061440243,-151.0,0.000432,120]
[381128306,1756061440252,-151.0,0.000432,120]
[381128307,1756061440262,-151.0,0.000432,120]
[381128308,1756061440272,-293.269847,0.000432,30]
[381128309,1756061440282,-151.0,0.000432,120]
[381128310,1756061440292,-151.0,0.000432,120]
[381128311,1756061440302,-151.0,0.000432,120]
[381128312,1756061440312,-151.0,0.000432,120]
[381128313,1756061440322,-151.0,0.000432,120]
[381128314,1756061440331,-151.0,0.000432,120]
[381128315,1756061440340,-151.0,0.000432,120]
[381128316,1756061440350,-151.0,0.000432,120]
[381128317,1756061440360,-151.0,0.000432,120]
[381128318,1756061440370,-151.0,0.000432,120]
[381128319,1756061440380,-151.0,0.000432,120]
[381128320,1756061440392,-151.0,0.000432,120]
[381128321,1756061440404,-151.0,0.000432,120]
[381128323,1756061440414,-152.576873,0.000432,120]
[381128324,1756061440424,-151.0,0.000432,120]
[381128325,1756061440434,-151.0,0.000432,120]
[381128327,1756061440444,-151.0,0.000432,120]
[381128329,1756061440453,-151.0,0.000432,120]
[381128331,1756061440463,-151.0,0.000432,120]
[381128333,1756061440472,-151.0,0.000432,120]
[381128335,1756061440484,-151.0,0.000432,120]